Workbook

Sheet Vlast
A1: CODE | B1: Conc_1RM | C1: CEA_1RM | D1: Conc_1RM | E1: CEA_1RM | F1: CONC_Reps_1 | G1: CONC_Reps_2 | H1: CEA_Reps_1 | I1: CEA_Reps_2 | J1: CONC_1 | K1: CONC_2 | L1: CEA_1 | M1: CEA_2 | N1: CONC_Aver | O1: CEA_Aver
A2: 1 | B2: 85 | C2: 90 | D2: 0.09 | E2: 0.14 | F2: 6 | G2: 5 | H2: 4 | I2: 4 | J2: 0.16 | K2: 0.14 | L2: 0.12 | M2: 0.14 | N2: =AVERAGE(J2:K2) -> 0.15 | O2: =AVERAGE(L2:M2) -> 0.13
A3: 2 | B3: 82.5 | C3: 85 | D3: 0.13 | E3: 0.21 | F3: 5 | G3: 4 | H3: 5 | I3: 5 | J3: 0.12 | K3: 0.12 | L3: 0.20 | M3: 0.18 | N3: =AVERAGE(J3:K3) -> 0.12 | O3: =AVERAGE(L3:M3) -> 0.19
A4: 5 | B4: 77.5 | C4: 82.5 | D4: 0.14 | E4: 0.12 | F4: 9 | G4: 6 | H4: 10 | I4: 7 | J4: 0.09 | K4: 0.10 | L4: 0.09 | M4: 0.09 | N4: 0.10 | O4: 0.09
A5: 6 | B5: 52.5 | C5: 52.5 | D5: 0.15 | E5: 0.17 | F5: 6 | G5: 5 | H5: 9 | I5: 4 | J5: 0.17 | K5: 0.13 | L5: 0.13 | M5: 0.12 | N5: 0.15 | O5: 0.13
A6: 7 | B6: 65 | D6: 0.20 | F6: 7 | G6: 6 | J6: 0.22 | K6: 0.22 | N6: 0.22
A7: 8 | B7: 57.5 | C7: 62.5 | D7: 0.17 | E7: 0.15 | F7: 5 | G7: 4 | H7: 7 | I7: 4 | J7: 0.19 | K7: 0.18 | L7: 0.23 | M7: 0.22 | N7: =AVERAGE(J7:K7) -> 0.19 | O7: =AVERAGE(L7:M7) -> 0.23
A8: 9 | B8: 72.5 | C8: 85 | D8: 0.23 | E8: 0.12 | F8: 6 | G8: 5 | H8: 8 | I8: 6 | J8: 0.15 | K8: 0.15 | L8: 0.11 | M8: 0.09 | N8: 0.15 | O8: 0.10
A9: 10 | B9: 47.5 | C9: 50 | D9: 0.18 | E9: 0.27 | F9: 4 | G9: 3 | H9: 3 | I9: 2 | J9: 0.20 | K9: 0.20 | L9: 0.21 | M9: 0.25 | N9: 0.20 | O9: 0.23
A10: 12 | B10: 60 | C10: 65 | D10: 0.25 | E10: 0.16 | F10: 4 | G10: 3 | H10: 4 | I10: 3 | J10: 0.22 | K10: 0.18 | L10: 0.12 | M10: 0.13 | N10: 0.20 | O10: 0.13
A11: 13 | B11: 35 | C11: 40 | D11: 0.23 | E11: 0.24 | F11: 7 | G11: 8 | H11: 7 | I11: 6 | J11: 0.19 | K11: 0.20 | L11: 0.11 | M11: 0.21 | N11: 0.20 | O11: 0.16
A12: 14 | B12: 65 | C12: 70 | D12: 0.27 | E12: 0.13 | F12: 6 | G12: 5 | H12: 8 | I12: 8 | J12: 0.20 | K12: 0.16 | L12: 0.15 | M12: 0.16 | N12: 0.18 | O12: 0.16
A13: 17 | B13: 100 | C13: 97.5 | D13: 0.17 | E13: 0.15 | F13: 8 | G13: 6 | H13: 15 | I13: 10 | J13: 0.12 | K13: 0.14 | L13: 0.12 | M13: 0.10 | N13: 0.13 | O13: 0.11
A14: 18 | B14: 80 | C14: 75 | D14: 0.33 | E14: 0.23 | F14: 7 | G14: 5 | H14: 9 | I14: 8 | J14: 0.21 | K14: 0.12 | L14: 0.20 | M14: 0.15 | N14: 0.16 | O14: 0.17
A15: 19 | B15: 55 | C15: 57.5 | D15: 0.20 | E15: 0.21 | F15: 6 | G15: 5 | H15: 5 | I15: 3 | J15: 0.16 | K15: 0.21 | L15: 0.23 | M15: 0.26 | N15: 0.19 | O15: 0.24
A16: 20 | B16: 67.5 | C16: 70 | D16: 0.10 | E16: 0.17 | F16: 7 | G16: 6 | H16: 8 | I16: 5 | J16: 0.15 | K16: 0.10 | L16: 0.08 | M16: 0.09 | N16: 0.13 | O16: 0.09
A17: 22 | B17: 42.5 | C17: 47.5 | D17: 0.19 | E17: 0.15 | F17: 10 | G17: 9 | H17: 4 | I17: 5 | J17: 0.13 | K17: 0.07 | L17: 0.19 | M17: 0.16 | N17: 0.10 | O17: 0.18
A18: 23 | B18: 62.5 | C18: 67.5 | D18: 0.18 | E18: 0.23 | F18: 5 | G18: 3 | H18: 8 | I18: 8 | J18: 0.16 | K18: 0.26 | L18: 0.29 | M18: 0.16 | N18: 0.21 | O18: 0.23
A19: 24 | B19: 92.5 | C19: 95 | D19: 0.10 | E19: 0.15 | F19: 5 | G19: 5 | H19: 8 | I19: 7 | J19: 0.14 | K19: 0.14 | L19: 0.13 | M19: 0.10 | N19: 0.14 | O19: 0.12
A20: 27 | B20: 51 | C20: 52.5 | D20: 0.20 | E20: 0.21 | F20: 9 | G20: 6 | H20: 8 | I20: 7 | J20: 0.19 | K20: 0.21 | L20: 0.19 | M20: 0.17 | N20: 0.20 | O20: 0.18
A21: 28 | B21: 65 | C21: 70 | D21: 0.17 | E21: 0.17 | F21: 5 | G21: 4 | H21: 6 | I21: 4 | J21: 0.15 | K21: 0.16 | L21: 0.12 | M21: 0.15 | N21: 0.16 | O21: 0.14
A22: 29 | B22: 65 | C22: 65 | D22: 0.13 | E22: 0.20 | F22: 6 | G22: 5 | H22: 5 | I22: 5 | J22: 0.15 | K22: 0.16 | L22: 0.24 | M22: 0.16 | N22: 0.15 | O22: 0.20
A23: 30 | B23: 55 | C23: 57.5 | D23: 0.17 | E23: 0.19 | F23: 7 | G23: 6 | H23: 4 | I23: 3 | J23: 0.11 | K23: 0.14 | L23: 0.20 | M23: 0.18 | N23: 0.12 | O23: 0.19
A24: 32 | B24: 46 | C24: 50 | D24: 0.08 | E24: 0.16 | F24: 5 | G24: 6 | H24: 10 | I24: 5 | J24: 0.16 | K24: 0.16 | L24: 0.12 | M24: 0.14 | N24: 0.16 | O24: 0.13
A25: 34 | B25: 42.5 | C25: 55 | D25: 0.19 | E25: 0.23 | F25: 7 | G25: 5 | H25: 2 | I25: 6 | J25: 0.15 | K25: 0.09 | L25: 0.15 | M25: 0.23 | N25: 0.12 | O25: 0.19
A26: 36 | B26: 62.5 | C26: 67.5 | D26: 0.17 | E26: 0.19 | F26: 5 | G26: 5 | H26: 3 | I26: 2 | J26: 0.09 | K26: 0.16 | L26: 0.16 | M26: 0.18 | N26: =AVERAGE(J26:K26) -> 0.13 | O26: =AVERAGE(L26:M26) -> 0.17
A27: 37 | B27: 55 | C27: 55 | D27: 0.16 | E27: 0.18 | F27: 7 | G27: 8 | H27: 9 | I27: 7 | J27: 0.13 | K27: 0.09 | L27: 0.15 | M27: 0.11 | N27: =AVERAGE(J27:K27) -> 0.11 | O27: =AVERAGE(L27:M27) -> 0.13
A28: 39 | B28: 38.5 | C28: 40 | D28: 0.18 | E28: 0.19 | F28: 11 | G28: 9 | H28: 7 | I28: 6 | J28: 0.14 | K28: 0.17 | L28: 0.14 | M28: 0.14 | N28: 0.15 | O28: 0.14
A29: 40 | B29: 53.5 | C29: 55 | D29: 0.11 | E29: 0.24 | F29: 5 | G29: 5 | H29: 7 | I29: 4 | J29: 0.22 | K29: 0.19 | L29: 0.16 | M29: 0.20 | N29: 0.21 | O29: 0.18
A30: 41 | B30: 60 | C30: 65 | D30: 0.17 | E30: 0.17 | F30: 5 | G30: 6 | H30: 5 | I30: 3 | J30: 0.21 | K30: 0.27 | L30: 0.27 | M30: 0.15 | N30: 0.24 | O30: 0.21
A31: 42 | B31: 57.5 | C31: 60 | D31: 0.12 | E31: 0.18 | F31: 9 | G31: 6 | H31: 10 | I31: 7 | J31: 0.12 | K31: 0.14 | L31: 0.22 | M31: 0.10 | N31: 0.13 | O31: 0.16
A32: 43 | B32: 50 | C32: 56 | D32: 0.24 | E32: 0.16 | F32: 8 | G32: 4 | H32: 4 | I32: 1 | J32: 0.17 | K32: 0.20 | L32: 0.20 | M32: 0.25 | N32: 0.19 | O32: 0.22
A33: 45 | B33: 66 | C33: 60 | D33: 0.11 | E33: 0.19 | F33: 7 | G33: 3 | H33: 3 | I33: 2 | J33: 0.06 | K33: 0.14 | L33: 0.18 | M33: 0.13 | N33: 0.10 | O33: 0.15
A34: 49 | B34: 57.5 | C34: 60 | D34: 0.25 | E34: 0.10 | F34: 6 | G34: 4 | H34: 11 | I34: 3 | J34: 0.19 | K34: 0.23 | L34: 0.13 | M34: 0.23 | N34: 0.21 | O34: 0.18
A35: 50 | B35: 50 | C35: 52.5 | D35: 0.21 | E35: 0.18 | F35: 6 | G35: 4 | H35: 5 | I35: 4 | J35: 0.15 | K35: 0.14 | L35: 0.15 | M35: 0.19 | N35: 0.15 | O35: 0.17
A36: 52 | B36: 40 | C36: 45 | D36: 0.09 | E36: 0.22 | F36: 9 | G36: 6 | H36: 8 | I36: 5 | J36: 0.13 | K36: 0.13 | L36: 0.17 | M36: 0.10 | N36: 0.13 | O36: 0.13
A37: 54 | B37: 55 | C37: 60 | D37: 0.20 | E37: 0.11 | F37: 6 | G37: 4 | H37: 3 | I37: 4 | J37: 0.09 | K37: 0.13 | L37: 0.09 | M37: 0.18 | N37: 0.11 | O37: 0.14
A38: 55 | B38: 42.5 | C38: 46 | D38: 0.18 | E38: 0.12 | F38: 6 | G38: 4 | H38: 7 | I38: 8 | J38: 0.14 | K38: 0.09 | L38: 0.15 | M38: 0.16 | N38: 0.11 | O38: 0.15
A39: 56 | B39: 42.5 | C39: 47.5 | D39: 0.22 | E39: 0.23 | F39: 8 | G39: 5 | H39: 3 | I39: 2 | J39: 0.15 | K39: 0.15 | L39: 0.19 | M39: 0.20 | N39: 0.15 | O39: 0.19
A40: 57 | B40: 67.5 | C40: 75 | D40: 0.13 | E40: 0.12 | F40: 9 | G40: 2 | H40: 8 | I40: 6 | J40: 0.11 | K40: 0.12 | L40: 0.11 | M40: 0.10 | N40: 0.11 | O40: 0.11
A41: 58 | B41: 43.5 | C41: 50 | D41: 0.28 | E41: 0.13 | F41: 10 | G41: 6 | H41: 7 | I41: 5 | J41: 0.19 | K41: 0.20 | L41: 0.23 | M41: 0.19 | N41: 0.20 | O41: 0.21
A42: 60 | B42: 52.5 | C42: 53.5 | D42: 0.23 | E42: 0.21 | F42: 3 | G42: 6 | H42: 6 | I42: 5 | J42: 0.18 | K42: 0.15 | L42: 0.15 | M42: 0.10 | N42: 0.16 | O42: 0.12
A43: 61 | B43: 62.5 | C43: 67.5 | D43: 0.19 | E43: 0.14 | F43: 10 | G43: 10 | H43: 9 | I43: 5 | J43: 0.16 | K43: 0.10 | L43: 0.16 | M43: 0.16 | N43: 0.13 | O43: 0.16
A44: 62 | B44: 60 | C44: 66 | D44: 0.17 | E44: 0.06 | F44: 6 | G44: 5 | H44: 5 | I44: 4 | J44: 0.10 | K44: 0.11 | L44: 0.16 | M44: 0.16 | N44: 0.11 | O44: 0.16
A45: 63 | B45: 40 | C45: 45 | D45: 0.27 | E45: 0.14 | F45: 7 | H45: 3 | I45: 3 | J45: 0.20 | L45: 0.16 | M45: 0.12 | N45: =AVERAGE(J45:K45) -> 0.20 | O45: =AVERAGE(L45:M45) -> 0.14
A46: 64 | B46: 53.5 | C46: 57.5 | D46: 0.20 | E46: 0.13 | F46: 5 | G46: 6 | H46: 9 | I46: 6 | J46: 0.17 | K46: 0.12 | L46: 0.14 | M46: 0.12 | N46: =AVERAGE(J46:K46) -> 0.14 | O46: =AVERAGE(L46:M46) -> 0.13
A47: 65 | B47: 50 | C47: 57.5 | D47: 0.23 | E47: 0.26 | F47: 9 | G47: 6 | H47: 11 | I47: 8 | J47: 0.16 | K47: 0.20 | L47: 0.19 | M47: 0.15 | N47: 0.18 | O47: 0.17
A48: 66 | B48: 55 | D48: 0.22 | F48: 7 | G48: 5 | J48: 0.12 | K48: 0.12 | N48: 0.12
A49: 68 | B49: 51 | C49: 55 | D49: 0.22 | E49: 0.19 | F49: 5 | G49: 4 | H49: 7 | I49: 5 | J49: 0.14 | K49: 0.17 | L49: 0.24 | M49: 0.16 | N49: 0.15 | O49: 0.20
A50: 69 | B50: 41 | C50: 45 | D50: 0.11 | E50: 0.19 | F50: 6 | G50: 6 | H50: 5 | I50: 7 | J50: 0.17 | K50: 0.14 | L50: 0.19 | M50: 0.16 | N50: 0.16 | O50: 0.18
A51: 70 | B51: 50 | C51: 56 | D51: 0.18 | E51: 0.11 | F51: 6 | G51: 4 | H51: 7 | I51: 6 | J51: 0.14 | K51: 0.10 | L51: 0.11 | M51: 0.10 | N51: 0.12 | O51: 0.10
A52: 71 | B52: 40 | C52: 47.5 | D52: 0.19 | E52: 0.19 | F52: 10 | G52: 12 | H52: 11 | I52: 11 | J52: 0.25 | K52: 0.19 | L52: 0.17 | M52: 0.14 | N52: 0.22 | O52: 0.15
A53: 72 | B53: 67.5 | C53: 70 | D53: 0.15 | E53: 0.09 | F53: 9 | G53: 5 | H53: 9 | I53: 7 | J53: 0.15 | K53: 0.11 | L53: 0.08 | M53: 0.11 | N53: 0.13 | O53: 0.10
A54: 73 | B54: 58.5 | C54: 63.5 | D54: 0.13 | E54: 0.17 | F54: 6 | H54: 6 | I54: 7 | J54: 0.15 | L54: 0.15 | M54: 0.14 | N54: 0.15 | O54: 0.14
A55: 74 | B55: 77.5 | C55: 92.5 | D55: 0.17 | E55: 0.08 | F55: 7 | G55: 5 | H55: 11 | I55: 7 | J55: 0.17 | K55: 0.12 | L55: 0.15 | M55: 0.12 | N55: 0.14 | O55: 0.14
A56: 75 | C56: 96 | E56: 0.10 | H56: 8 | I56: 6 | L56: 0.15 | M56: 0.16 | O56: 0.16
A57: 76 | B57: 92.5 | C57: 100 | D57: 0.13 | E57: 0.09 | F57: 13 | G57: 11 | H57: 10 | I57: 9 | J57: 0.11 | K57: 0.19 | L57: 0.18 | M57: 0.16 | N57: 0.15 | O57: 0.17
A58: 80 | B58: 56 | C58: 60 | D58: 0.16 | E58: 0.16 | F58: 7 | G58: 6 | H58: 9 | I58: 7 | J58: 0.19 | K58: 0.19 | L58: 0.14 | M58: 0.11 | N58: 0.19 | O58: 0.13
A59: 81 | B59: 52.5 | C59: 56 | D59: 0.21 | E59: 0.16 | F59: 10 | G59: 8 | H59: 6 | I59: 6 | J59: 0.15 | K59: 0.12 | L59: 0.14 | M59: 0.14 | N59: 0.14 | O59: 0.14
A60: 82 | B60: 41 | C60: 47.5 | D60: 0.19 | E60: 0.16 | F60: 7 | G60: 6 | H60: 7 | I60: 6 | J60: 0.22 | K60: 0.14 | L60: 0.11 | M60: 0.11 | N60: 0.18 | O60: 0.11
A61: 83 | B61: 52.5 | D61: 0.19 | F61: 6 | G61: 6 | J61: 0.23 | K61: 0.13 | N61: =AVERAGE(J61:K61) -> 0.18
A62: 86 | B62: 48.5 | C62: 55 | D62: 0.15 | E62: 0.16 | F62: 5 | G62: 3 | H62: 4 | I62: 4 | J62: 0.22 | K62: 0.21 | L62: 0.27 | M62: 0.22 | N62: =AVERAGE(J62:K62) -> 0.21 | O62: =AVERAGE(L62:M62) -> 0.24
A63: 87 | B63: 42.5 | C63: 47.5 | D63: 0.22 | E63: 0.22 | F63: 6 | G63: 5 | H63: 4 | I63: 2 | J63: 0.19 | K63: 0.16 | L63: 0.14 | M63: 0.13 | N63: 0.18 | O63: 0.14
A64: 89 | B64: 98 | C64: 105 | D64: 0.19 | E64: 0.17 | F64: 6 | G64: 5 | H64: 12 | I64: 10 | J64: 0.17 | K64: 0.17 | L64: 0.18 | M64: 0.22 | N64: 0.17 | O64: 0.20
A65: 90 | C65: 72.5 | E65: 0.18 | H65: 6 | I65: 5 | L65: 0.09 | M65: 0.13 | O65: 0.11
A66: 91 | B66: 50 | C66: 57.5 | D66: 0.22 | E66: 0.22 | F66: 5 | G66: 5 | H66: 4 | I66: 3 | J66: 0.19 | K66: 0.17 | L66: 0.15 | M66: 0.13 | N66: 0.18 | O66: 0.14
A67: 92 | B67: 47.5 | C67: 50 | D67: 0.14 | E67: 0.29 | F67: 10 | G67: 8 | H67: 7 | I67: 4 | J67: 0.11 | K67: 0.16 | L67: 0.25 | M67: 0.26 | N67: 0.13 | O67: 0.25
A68: 93 | B68: 66 | C68: 80 | D68: 0.11 | E68: 0.24 | F68: 7 | G68: 4 | H68: 5 | I68: 4 | J68: 0.25 | K68: 0.23 | L68: 0.17 | M68: 0.15 | N68: 0.24 | O68: 0.16
A69: 94 | B69: 60 | C69: 67.5 | D69: 0.19 | E69: 0.14 | F69: 9 | G69: 8 | H69: 7 | I69: 7 | J69: 0.10 | K69: 0.09 | L69: 0.16 | M69: 0.14 | N69: 0.10 | O69: 0.15
A70: 95 | B70: 55 | C70: 55 | D70: 0.23 | E70: 0.22 | F70: 4 | G70: 4 | H70: 5 | I70: 3 | J70: 0.23 | K70: 0.21 | L70: 0.16 | M70: 0.16 | N70: 0.22 | O70: 0.16
A71: 98 | B71: 55 | C71: 57.5 | D71: 0.19 | E71: 0.16 | F71: 8 | G71: 8 | H71: 6 | I71: 5 | J71: 0.15 | K71: 0.12 | L71: 0.09 | M71: 0.12 | N71: 0.14 | O71: 0.10
A72: 100 | B72: 72.5 | D72: 0.13 | F72: 3 | G72: 5 | J72: 0.18 | K72: 0.12 | N72: 0.15
A73: 101 | B73: 95 | C73: 105 | D73: 0.18 | E73: 0.18 | F73: 8 | G73: 6 | H73: 8 | I73: 8 | J73: 0.13 | K73: 0.15 | L73: 0.14 | M73: 0.10 | N73: 0.14 | O73: 0.12
A74: 104 | B74: 72.5 | C74: 85 | D74: 0.11 | E74: 0.33 | F74: 12 | G74: 9 | H74: 10 | I74: 6 | J74: 0.10 | K74: 0.13 | L74: 0.07 | M74: 0.15 | N74: 0.12 | O74: 0.11
A75: 105 | B75: 95 | C75: 95 | D75: 0.13 | E75: 0.14 | F75: 5 | G75: 7 | H75: 5 | I75: 5 | J75: 0.16 | K75: 0.13 | L75: 0.16 | M75: 0.19 | N75: =AVERAGE(J75:K75) -> 0.15 | O75: =AVERAGE(L75:M75) -> 0.18
A76: 106 | B76: 46 | C76: 52.5 | D76: 0.14 | E76: 0.18 | F76: 9 | G76: 4 | H76: 9 | I76: 9 | J76: 0.13 | K76: 0.20 | L76: 0.12 | M76: 0.12 | N76: =AVERAGE(J76:K76) -> 0.17 | O76: =AVERAGE(L76:M76) -> 0.12
A77: 107 | B77: 60 | C77: 67.5 | D77: 0.24 | E77: 0.21 | F77: 7 | G77: 6 | H77: 7 | I77: 6 | J77: 0.20 | K77: 0.18 | L77: 0.18 | M77: 0.19 | N77: 0.19 | O77: 0.18
A78: 108 | B78: 75.5 | C78: 85 | D78: 0.16 | E78: 0.16 | F78: 3 | G78: 3 | H78: 7 | I78: 6 | J78: 0.28 | K78: 0.22 | L78: 0.19 | M78: 0.15 | N78: 0.25 | O78: 0.17
A79: 109 | B79: 81 | D79: 0.14 | F79: 8 | G79: 7 | J79: 0.12 | K79: 0.15 | N79: 0.13
A80: 110 | B80: 45 | C80: 50 | D80: 0.24 | E80: 0.12 | F80: 6 | G80: 5 | H80: 7 | I80: 5 | J80: 0.18 | K80: 0.09 | L80: 0.17 | M80: 0.16 | N80: 0.13 | O80: 0.16
A81: 111 | B81: 52.5 | C81: 52.5 | D81: 0.19 | E81: 0.29 | F81: 4 | G81: 4 | H81: 4 | I81: 6 | J81: 0.18 | K81: 0.25 | L81: 0.23 | M81: 0.12 | N81: 0.22 | O81: 0.18
A82: 112 | B82: 95 | C82: 97.5 | D82: 0.11 | E82: 0.09 | F82: 5 | G82: 4 | H82: 7 | I82: 6 | J82: 0.14 | K82: 0.20 | L82: 0.12 | M82: 0.19 | N82: 0.17 | O82: 0.15
A83: 113 | B83: 70 | C83: 73.5 | D83: 0.14 | E83: 0.15 | F83: 7 | G83: 6 | H83: 8 | I83: 6 | J83: 0.16 | K83: 0.14 | L83: 0.14 | M83: 0.18 | N83: 0.15 | O83: 0.16
A84: 114 | B84: 77.5 | C84: 85 | D84: 0.13 | E84: 0.15 | F84: 5 | G84: 3 | H84: 10 | I84: 8 | J84: 0.16 | K84: 0.20 | L84: 0.15 | M84: 0.20 | N84: 0.18 | O84: 0.17
A85: 115 | B85: 87.5 | C85: 97.5 | D85: 0.17 | E85: 0.11 | F85: 6 | G85: 6 | H85: 8 | I85: 7 | J85: 0.08 | K85: 0.11 | L85: 0.13 | M85: 0.12 | N85: 0.10 | O85: 0.12
A86: 116 | B86: 57.5 | C86: 60 | D86: 0.13 | E86: 0.21 | F86: 5 | G86: 5 | H86: 11 | I86: 4 | J86: 0.27 | K86: 0.23 | L86: 0.21 | M86: 0.18 | N86: 0.25 | O86: 0.19
A87: 117 | B87: 102.5 | D87: 0.07 | F87: 7 | G87: 5 | J87: 0.19 | K87: 0.19 | N87: 0.19
A88: 118 | B88: 60 | C88: 60 | D88: 0.22 | E88: 0.16 | F88: 3 | G88: 4 | H88: 7 | I88: 5 | J88: 0.22 | K88: 0.19 | L88: 0.21 | M88: 0.16 | N88: 0.20 | O88: 0.18
A89: 119 | B89: 67.5 | D89: 0.22 | F89: 10 | G89: 10 | J89: 0.15 | K89: 0.12 | N89: 0.14
A90: 120 | B90: 55 | C90: 57.5 | D90: 0.14 | E90: 0.28 | F90: 6 | G90: 4 | H90: 5 | I90: 7 | J90: 0.23 | K90: 0.26 | L90: 0.22 | M90: 0.26 | N90: 0.24 | O90: 0.24
A91: 121 | B91: 130 | C91: 140 | D91: 0.14 | E91: 0.29 | F91: 5 | G91: 5 | H91: 9 | I91: 9 | J91: 0.12 | K91: 0.11 | L91: 0.15 | M91: 0.19 | N91: 0.11 | O91: 0.17
A92: 122 | B92: 82.5 | C92: 95 | D92: 0.20 | E92: 0.13 | F92: 6 | G92: 7 | H92: 5 | I92: 5 | J92: 0.10 | K92: 0.13 | L92: 0.11 | M92: 0.13 | N92: 0.11 | O92: 0.12
A93: 123 | B93: 65 | C93: 70 | D93: 0.17 | E93: 0.26 | F93: 5 | G93: 5 | H93: 4 | I93: 3 | J93: 0.15 | K93: 0.17 | L93: 0.19 | M93: 0.24 | N93: 0.16 | O93: 0.21
A94: 124 | B94: 52.5 | C94: 57.5 | D94: 0.15 | E94: 0.10 | F94: 5 | G94: 6 | H94: 5 | I94: 5 | J94: 0.16 | K94: 0.13 | L94: 0.17 | M94: 0.17 | N94: 0.14 | O94: 0.17
A95: 125 | B95: 67.5 | C95: 75 | D95: 0.12 | E95: 0.15 | F95: 9 | G95: 8 | H95: 5 | I95: 4 | J95: 0.12 | K95: 0.13 | L95: 0.12 | M95: 0.13 | N95: 0.12 | O95: 0.13
A96: 131 | B96: 85 | C96: 90 | D96: 0.17 | E96: 0.14 | F96: 4 | G96: 4 | H96: 4 | I96: 5 | J96: 0.08 | K96: 0.11 | L96: 0.18 | M96: 0.11 | N96: 0.10 | O96: 0.15
A97: 132 | C97: 50 | E97: 0.25 | H97: 6 | I97: 4 | L97: 0.13 | M97: 0.11 | O97: 0.12
